fUSD/lending_fUSD_20251228
["ID","MTS","AMOUNT","RATE_DAILY","PERIOD"]
[399965215,1766950241176,-500.0,0.0001558,2]
[399965216,1766950241186,-500.0,0.0001558,2]
[399965217,1766950241195,-500.0,0.0001558,2]
[399965218,1766950241205,-320.1146403,0.0001558,2]
[399965219,1766950241215,-500.0,0.0001558,2]
[399965220,1766950241226,-250.0,0.0001558,2]
[399965221,1766950241235,-500.0,0.0001558,2]
[399965222,1766950241244,-284.76184806,0.0001558,2]
[399965223,1766950241255,-250.0,0.0001558,2]
[399965224,1766950241265,-500.0,0.0001558,2]
[399965225,1766950241274,-250.0,0.0001558,2]
[399965226,1766950241284,-500.0,0.0001558,2]
[399965227,1766950241294,-250.0,0.0001558,2]
[399965228,1766950241303,-500.0,0.0001558,2]
[399965229,1766950241313,-250.0,0.0001558,2]
[399965230,1766950241324,-259.6625457,0.0001558,2]
[399965231,1766950241333,-250.0,0.0001558,2]
[399965232,1766950241342,-250.0,0.0001558,2]
[399965233,1766950241352,-250.0,0.0001558,2]
[399965234,1766950241362,-250.0,0.0001558,2]
[399965235,1766950241372,-250.0,0.0001558,2]
[399965236,1766950241382,-250.0,0.0001558,2]
[399965237,1766950241392,-200.0,0.0001558,2]
[399965238,1766950241402,-207.4,0.0001558,2]
[399965239,1766950241412,-215.0738,0.0001558,2]
[399965240,1766950241421,-223.0315306,0.0001558,2]
[399965241,1766950241430,-231.28369723,0.0001558,2]
[399965242,1766950241440,-239.84119403,0.0001558,2]
[399965243,1766950241449,-248.71531821,0.0001558,2]
[399965244,1766950241458,-257.91778498,0.0001558,2]
[399965245,1766950241468,-500.0,0.0001558,2]
[399965246,1766950241479,-405.15229211,0.0001558,2]
[399965247,1766950241490,-500.0,0.0001558,2]
[399965248,1766950241499,-500.0,0.0001558,2]
[399965249,1766950241509,-282.13607366,0.0001558,2]
[399965250,1766950241519,-6905.51028365,0.00015593,2]
[399965251,1766950241528,-10847.42644864,0.00015593,2]
[399965252,1766950241539,-150.0,0.00015601,2]
[399965253,1766950241548,-150.0,0.00015606,2]
[399965254,1766950241558,-150.0,0.00015611,2]
[399965255,1766950241568,-150.0,0.00015613,2]
[399965256,1766950241579,-150.0,0.00015627,2]
[399965257,1766950241589,-150.0,0.00015627,2]
[399965258,1766950241599,-151.0,0.0001563,2]
[399965259,1766950241608,-151.0,0.0001563,2]
[399965260,1766950241617,-151.0,0.0001563,2]
[399965261,1766950241627,-151.0,0.0001563,2]
[399965262,1766950241637,-150.0,0.00015642,2]
[399965263,1766950241646,-150.0,0.00015645,2]
[399965264,1766950241657,-150.0,0.00015649,2]
[399965265,1766950241667,-150.0,0.00015665,2]
[399965266,1766950241680,-974.54,0.00015668,2]
[399965267,1766950241690,-500.0,0.00015668,2]
[399965268,1766950241699,-500.0,0.00015668,2]
[399965269,1766950241887,-500.0,0.00015668,2]
[399965270,1766950241897,-507.00799583,0.00015668,2]
[399965271,1766950241907,-1000.0,0.00015668,2]
[399965272,1766950241916,-150.0,0.00015676,2]
[399965273,1766950241927,-150.0,0.00015685,2]
[399965274,1766950241935,-150.0,0.0001569,2]
[399965275,1766950241945,-150.0,0.00015692,2]
[399965276,1766950241955,-150.0,0.00015695,2]
[399965277,1766950241964,-150.0,0.00015712,2]
[399965278,1766950241974,-150.0,0.00015712,2]
[399965279,1766950241983,-150.0,0.00015721,2]
[399965280,1766950241993,-150.0,0.00015724,2]
[399965281,1766950242002,-150.0,0.00015735,2]
[399965282,1766950242011,-150.0,0.00015758,2]
[399965283,1766950242021,-150.0,0.00015763,2]
[399965284,1766950242031,-150.0,0.00015773,2]
[399965285,1766950242040,-150.0,0.00015773,2]
[399965286,1766950242049,-150.0,0.00015773,2]
[399965287,1766950242059,-150.0,0.00015773,2]
[399965288,1766950242068,-150.0,0.00015779,2]
[399965289,1766950242078,-150.0,0.00015783,2]
[399965290,1766950242088,-150.0,0.00015794,2]
[399965291,1766950242097,-150.0,0.00015818,2]
[399965292,1766950242107,-150.0,0.00015822,2]
[399965293,1766950242117,-150.0,0.00015824,2]
[399965294,1766950242128,-150.0,0.0001583,2]
[399965295,1766950242138,-150.0,0.00015831,2]
[399965296,1766950242147,-1000.0,0.0001585,2]
[399965297,1766950242157,-150.0,0.00015854,2]
[399965298,1766950242167,-150.0,0.00015854,2]
[399965299,1766950242176,-150.0,0.00015854,2]
[399965300,1766950242186,-150.0,0.00015854,2]
[399965301,1766950242196,-150.0,0.00015854,2]
[399965302,1766950242206,-6905.51028365,0.00015854,2]
[399965303,1766950242215,-10847.42644864,0.00015854,2]
[399965304,1766950242224,-150.0,0.00015866,2]
[399965305,1766950242234,-150.0,0.00015869,2]
[399965306,1766950242243,-150.0,0.0001587,2]
[399965307,1766950242253,-195.25613183,0.00015892,2]
[399965308,1766950242263,-150.0,0.00015899,2]
[399965309,1766950242273,-150.0,0.00015902,2]
[399965310,1766950242282,-150.0,0.00015913,2]
[399965311,1766950242293,-150.0,0.00015919,2]
[399965312,1766950242303,-500.0,0.00015921,2]
[399965313,1766950242312,-150.0,0.00015925,2]
[399965314,1766950242321,-150.0,0.00015925,2]
[399965315,1766950242331,-250.0,0.00015926,2]
[399965316,1766950242340,-150.0,0.00015935,2]
[399965318,1766950242349,-150.0,0.00015938,2]
[399965319,1766950242359,-974.54,0.00015942,2]
[399965321,1766950242368,-150.0,0.00015958,2]
[399965323,1766950242380,-150.0,0.00015967,2]
[399965324,1766950242390,-150.0,0.00015967,2]
[399965325,1766950242399,-200.27562112,0.00015973,2]
[399965326,1766950242409,-500.0,0.00015973,2]
[399965327,1766950242419,-150.0,0.00015974,2]
[399965328,1766950242429,-150.0,0.00015995,2]
[399965329,1766950242438,-16961.26309548,0.00016,2]
[399965330,1766950242448,-114467.83555121,0.00016,2]
[399965331,1766950242458,-17005.83516608,0.00016,2]
[399965332,1766950242468,-42413.38531049,0.00016,4]
[399965333,1766950242478,-150.0,0.00016003,2]
[399965334,1766950242489,-150.0,0.0001601,2]
[399965335,1766950242499,-150.0,0.00016016,2]
[399965336,1766950242509,-150.0,0.00016016,2]
[399965337,1766950242518,-150.0,0.00016016,2]
[399965338,1766950242528,-150.0,0.00016016,2]
[399965339,1766950242537,-150.0,0.00016031,2]
[399965340,1766950242546,-177.25081937,0.00016032,2]
[399965341,1766950242555,-150.0,0.00016035,2]
[399965342,1766950242566,-150.0,0.00016043,2]
[399965343,1766950242575,-150.0,0.00016047,2]
[399965344,1766950242584,-150.0,0.00016048,2]
[399965345,1766950242593,-150.0,0.00016064,2]
[399965346,1766950242603,-150.0,0.00016066,2]
[399965347,1766950242614,-150.0,0.00016083,2]
[399965348,1766950242624,-220.47,0.00016083,2]
[399965349,1766950242633,-150.0,0.00016092,2]
[399965350,1766950242643,-150.0,0.00016097,2]
[399965351,1766950242654,-1027.0,0.00016098,2]
[399965352,1766950242664,-1027.0,0.000161,2]
[399965353,1766950242681,-150.0,0.00016103,2]
[399965354,1766950242691,-150.0,0.00016113,2]
[399965355,1766950242700,-6905.51028365,0.00016116,2]
[399965356,1766950242710,-10847.42644864,0.00016116,2]
[399965357,1766950242719,-150.0,0.00016119,2]
[399965358,1766950242729,-150.0,0.00016137,2]
[399965359,1766950242739,-150.0,0.00016137,2]
[399965360,1766950242750,-150.0,0.00016137,2]
[399965361,1766950242759,-150.0,0.00016137,2]
[399965362,1766950242768,-150.0,0.00016137,2]
[399965363,1766950242778,-150.0,0.00016155,2]
[399965364,1766950242787,-150.0,0.00016161,2]
[399965365,1766950242796,-150.0,0.00016171,2]
[399965366,1766950242806,-150.0,0.00016177,2]
[399965367,1766950242815,-150.0,0.00016182,2]
[399965368,1766950242824,-150.0,0.00016191,2]
[399965369,1766950242834,-5000.00409162,0.000162,5]
[399965370,1766950242845,-150.0,0.00016208,2]
[399965371,1766950242854,-150.0,0.0001621,2]
[399965372,1766950242864,-974.54,0.00016216,2]
[399965373,1766950242873,-150.0,0.00016226,2]
[399965374,1766950242884,-150.0,0.00016227,2]
[399965375,1766950242895,-195.25613183,0.00016228,2]
[399965376,1766950242906,-150.0,0.00016231,2]
[399965377,1766950242916,-150.0,0.00016239,2]
[399965378,1766950242926,-150.0,0.00016243,2]
[399965379,1766950242936,-1027.0,0.00016253,2]
[399965380,1766950242946,-150.0,0.00016258,2]
[399965381,1766950242955,-150.0,0.00016258,2]
[399965382,1766950242964,-150.0,0.00016258,2]
[399965384,1766950242974,-150.0,0.00016258,2]
[399965386,1766950242983,-150.0,0.00016263,2]
[399965388,1766950242992,-150.0,0.00016271,2]
[399965390,1766950243001,-150.0,0.00016279,2]
[399965391,1766950243010,-150.0,0.000163,2]
[399965392,1766950243019,-150.0,0.00016307,2]
[399965393,1766950243028,-150.0,0.00016307,2]
[399965394,1766950243037,-433.0,0.00016311,2]
[399965395,1766950243046,-150.0,0.00016316,2]
[399965396,1766950243055,-150.0,0.00016336,2]
[399965397,1766950243065,-150.0,0.00016339,2]
[399965398,1766950243075,-151.0,0.00016345,2]
[399965399,1766950243085,-253.74648652,0.00016348,2]
[399965400,1766950243094,-253.74648652,0.00016348,2]
[399965401,1766950243104,-458.80436304,0.00016348,2]
[399965402,1766950243114,-150.0,0.00016349,2]
[399965403,1766950243123,-150.0,0.00016349,2]
[399965404,1766950243132,-150.0,0.00016355,2]
[399965405,1766950243142,-150.0,0.0001636,2]
[399965406,1766950243151,-150.0,0.00016372,2]
[399965407,1766950243160,-150.0,0.00016375,2]
[399965408,1766950243170,-1056.0,0.00016376,2]
[399965409,1766950243179,-6905.51028365,0.00016377,2]
[399965410,1766950243190,-10847.42644864,0.00016377,2]
[399965411,1766950243201,-150.0,0.00016404,2]
[399965412,1766950243210,-150.0,0.00016405,2]
[399965413,1766950243220,-150.0,0.00016408,2]
[399965414,1766950243229,-150.0,0.0001642,2]
[399965415,1766950243239,-150.0,0.0001642,2]
[399965416,1766950243248,-150.0,0.0001642,2]
[399965417,1766950243258,-150.0,0.0001642,2]
[399965418,1766950243268,-150.0,0.0001642,2]
[399965419,1766950243278,-500.0,0.00016438,2]
[399965420,1766950243287,-500.0,0.00016438,2]
[399965421,1766950243297,-500.0,0.00016438,2]
[399965422,1766950243307,-500.0,0.00016438,2]
[399965423,1766950243318,-500.0,0.00016438,2]
[399965424,1766950243328,-500.0,0.00016438,2]
[399965425,1766950243338,-500.0,0.00016438,2]
[399965426,1766950243347,-500.0,0.00016438,2]
[399965427,1766950243357,-500.0,0.00016438,2]
[399965428,1766950243366,-500.0,0.00016438,2]
[399965429,1766950243375,-500.0,0.00016438,2]
[399965430,1766950243384,-500.0,0.00016438,2]
[399965431,1766950243394,-500.0,0.00016438,2]
[399965432,1766950243405,-500.0,0.00016438,2]
[399965433,1766950243415,-500.0,0.00016438,2]
[399965434,1766950243424,-500.0,0.00016438,2]
[399965435,1766950243436,-500.0,0.00016438,2]
[399965436,1766950243446,-500.0,0.00016438,2]
[399965437,1766950243455,-500.0,0.00016438,2]
[399965438,1766950243464,-500.0,0.00016438,2]
[399965439,1766950243475,-500.0,0.00016438,2]
[399965440,1766950243484,-500.0,0.00016438,2]
[399965441,1766950243493,-500.0,0.00016438,2]
[399965442,1766950243503,-500.0,0.00016438,2]
[399965443,1766950243512,-500.0,0.00016438,2]
[399965444,1766950243521,-596.7366177,0.00016438,2]
[399965445,1766950243531,-500.0,0.00016438,2]
[399965446,1766950243540,-500.0,0.00016438,2]
[399965447,1766950243549,-500.0,0.00016438,2]
[399965448,1766950243559,-500.0,0.00016438,2]
[399965449,1766950243568,-500.0,0.00016438,2]
[399965450,1766950243578,-500.0,0.00016438,2]
[399965451,1766950243587,-500.0,0.00016438,2]
[399965452,1766950243596,-500.0,0.00016438,2]
[399965453,1766950243606,-500.0,0.00016438,2]
[399965454,1766950243615,-500.0,0.00016438,2]
[399965455,1766950243625,-500.0,0.00016438,2]
[399965456,1766950243634,-500.0,0.00016438,2]
[399965457,1766950243644,-500.0,0.00016438,2]
[399965458,1766950243653,-500.0,0.00016438,2]
[399965459,1766950243664,-500.0,0.00016438,2]
[399965460,1766950243675,-500.0,0.00016438,2]
[399965461,1766950243684,-500.0,0.00016438,2]
[399965462,1766950243694,-500.0,0.00016438,2]
[399965463,1766950243703,-500.0,0.00016438,2]
[399965464,1766950243715,-500.0,0.00016438,2]
[399965465,1766950243724,-500.0,0.00016438,2]
[399965466,1766950243734,-500.0,0.00016438,2]
[399965467,1766950243745,-500.0,0.00016438,2]
[399965468,1766950243754,-500.0,0.00016438,2]
[399965469,1766950243764,-500.0,0.00016438,2]
[399965470,1766950243774,-500.0,0.00016438,2]
[399965471,1766950243783,-500.0,0.00016438,2]
[399965472,1766950243792,-500.0,0.00016438,2]
[399965473,1766950243801,-500.0,0.00016438,2]
[399965474,1766950243811,-500.0,0.00016438,2]
[399965475,1766950243820,-500.0,0.00016438,2]
[399965476,1766950243830,-500.0,0.00016438,2]
[399965477,1766950243839,-500.0,0.00016438,2]
[399965478,1766950243849,-500.0,0.00016438,2]
[399965479,1766950243858,-500.0,0.00016438,2]
[399965480,1766950243867,-500.0,0.00016438,2]
[399965481,1766950243877,-500.0,0.00016438,2]
[399965482,1766950243887,-500.0,0.00016438,2]
[399965483,1766950243896,-638.52629086,0.00016438,2]
[399965484,1766950243905,-500.0,0.00016438,2]
[399965485,1766950243914,-500.0,0.00016438,2]
[399965486,1766950243926,-500.0,0.00016438,2]
[399965487,1766950243937,-500.0,0.00016438,2]
[399965488,1766950243947,-500.0,0.00016438,2]
[399965489,1766950243957,-500.0,0.00016438,2]
[399965490,1766950243967,-500.0,0.00016438,2]
[399965491,1766950243978,-500.0,0.00016438,2]
[399965492,1766950243988,-500.0,0.00016438,2]
[399965493,1766950243999,-500.0,0.00016438,2]
[399965494,1766950244009,-213.85262908,0.00016438,2]
[399965495,1766950244019,-150.0,0.00016443,2]
[399965496,1766950244030,-150.0,0.00016444,2]
[399965497,1766950244041,-152.09829773,0.00016444,2]
[399965498,1766950244051,-150.0,0.0001645,2]
[399965499,1766950244061,-150.0,0.00016452,2]
[399965500,1766950244071,-150.0,0.00016455,2]
[399965501,1766950244081,-1027.0,0.00016477,2]
[399965502,1766950244090,-150.0,0.0001648,2]
[399965503,1766950244099,-974.56,0.0001649,2]
[399965504,1766950244110,-150.0,0.00016491,2]
[399965505,1766950244120,-150.0,0.00016495,2]
[399965506,1766950244130,-150.0,0.00016501,2]
[399965507,1766950244141,-150.0,0.00016501,2]
[399965508,1766950244151,-150.0,0.00016501,2]
[399965509,1766950244161,-150.0,0.00016501,2]
[399965510,1766950244170,-150.0,0.00016511,2]
[399965511,1766950244179,-150.0,0.00016516,2]
[399965512,1766950244190,-1000.0,0.00016521,2]
[399965513,1766950244200,-1595.8,0.00016523,2]
[399965514,1766950244210,-150.0,0.00016539,2]
[399965515,1766950244219,-150.0,0.0001655,2]
[399965516,1766950244229,-150.0,0.00016553,2]
[399965517,1766950244238,-150.0,0.00016562,2]
[399965518,1766950244248,-150.0,0.00016562,2]
[399965519,1766950244258,-195.25613183,0.00016564,2]
[399965520,1766950244268,-1595.8,0.00016566,2]
[399965521,1766950244279,-150.0,0.00016579,2]
[399965522,1766950244289,-150.0,0.00016582,2]
[399965523,1766950244299,-150.0,0.00016584,2]
[399965524,1766950244309,-150.0,0.00016589,2]
[399965525,1766950244318,-150.0,0.00016598,2]
[399965526,1766950244328,-150.0,0.00016609,2]
[399965527,1766950244337,-1595.8,0.0001661,2]
[399965528,1766950244346,-150.0,0.00016625,2]
[399965529,1766950244357,-150.0,0.00016629,2]
[399965530,1766950244368,-150.0,0.00016632,2]
[399965531,1766950244378,-6905.51028365,0.00016639,2]
[399965532,1766950244388,-10847.42644864,0.00016639,2]
[399965533,1766950244399,-150.0,0.00016647,2]
[399965534,1766950244410,-150.0,0.00016647,2]
[399965535,1766950244422,-1595.8,0.00016653,2]
[399965536,1766950244443,-971.1946189,0.0001666,2]
[399965537,1766950244454,-150.0,0.00016661,2]
[399965538,1766950244464,-150.0,0.00016663,2]
[399965539,1766950244474,-150.0,0.00016668,2]
[399965540,1766950244484,-150.0,0.00016673,2]
[399965541,1766950244494,-150.0,0.00016695,2]
[399965542,1766950244504,-1595.8,0.00016696,2]
[399965543,1766950244514,-150.0,0.00016697,2]
[399965544,1766950244523,-1000.0,0.000167,2]
[399965545,1766950244533,-150.0,0.00016703,2]
[399965546,1766950244543,-150.0,0.00016703,2]
[399965547,1766950244552,-150.0,0.00016715,2]
[399965548,1766950244562,-150.0,0.00016718,2]
[399965549,1766950244571,-150.0,0.00016733,2]
[399965550,1766950244580,-1316.979,0.00016736,2]
[399965551,1766950244589,-181.60853685,0.00016736,2]
[399965552,1766950244599,-1595.8,0.0001674,2]
[399965553,1766950244609,-150.0,0.00016744,2]
[399965554,1766950244618,-150.0,0.00016744,2]
[399965555,1766950244627,-150.0,0.00016744,2]
[399965556,1766950244637,-150.0,0.00016744,2]
[399965557,1766950244646,-1600.0,0.00016763,2]
[399965558,1766950244655,-150.0,0.00016763,2]
[399965559,1766950244666,-150.0,0.00016769,2]
[399965560,1766950244677,-150.0,0.00016774,2]
[399965561,1766950244687,-150.0,0.00016774,2]
[399965562,1766950244696,-150.0,0.00016782,2]
[399965563,1766950244708,-1595.8,0.00016783,2]
[399965564,1766950244718,-150.0,0.00016792,2]
[399965565,1766950244728,-150.0,0.00016798,2]
[399965566,1766950244738,-1000.0,0.000168,2]
[399965567,1766950244747,-150.0,0.00016806,2]
[399965568,1766950244757,-150.0,0.00016807,2]
[399965569,1766950244766,-150.0,0.00016825,2]
[399965570,1766950244775,-1595.8,0.00016827,2]
[399965571,1766950244784,-150.0,0.00016841,2]
[399965572,1766950244794,-150.0,0.00016842,2]
[399965573,1766950244803,-150.0,0.00016845,2]
[399965574,1766950244812,-150.0,0.0001685,2]
[399965575,1766950244821,-150.0,0.00016852,2]
[399965576,1766950244830,-1595.8,0.0001687,2]
[399965577,1766950244839,-1056.0,0.00016877,2]
[399965578,1766950244849,-150.0,0.00016878,2]
[399965579,1766950244858,-150.0,0.0001688,2]
[399965580,1766950244867,-150.0,0.00016889,2]
[399965581,1766950244877,-150.0,0.00016897,2]
[399965582,1766950244886,-6905.51028365,0.000169,2]
[399965583,1766950244895,-195.25613183,0.000169,2]
[399965584,1766950244905,-10847.42644864,0.000169,2]
[399965585,1766950244914,-177.25081937,0.000169,2]
[399965586,1766950244923,-405.16201081,0.000169,2]
[399965587,1766950244933,-352.50332532,0.000169,2]
[399965588,1766950244942,-322.03359741,0.000169,2]
[399965589,1766950244951,-526.62278413,0.000169,2]
[399965590,1766950244960,-1000.0,0.000169,2]
[399965591,1766950244969,-4049.0,0.000169,2]
[399965592,1766950244980,-150.0,0.00016905,2]
[399965593,1766950244990,-1595.8,0.00016913,2]
[399965594,1766950244999,-150.0,0.00016914,2]
[399965595,1766950245009,-150.0,0.00016916,2]
[399965596,1766950245022,-150.0,0.00016918,2]
[399965597,1766950245031,-1056.0,0.00016921,2]
[399965598,1766950245042,-150.0,0.00016938,2]
[399965599,1766950245051,-150.0,0.00016942,2]
[399965600,1766950245061,-150.0,0.0001695,2]
[399965601,1766950245071,-1595.8,0.00016957,2]
[399965602,1766950245080,-1000.0,0.0001696,2]
[399965603,1766950245091,-1000.0,0.0001696,2]
[399965604,1766950245101,-1000.0,0.0001696,2]
[399965605,1766950245112,-350.51,0.0001696,2]
[399965606,1766950245123,-1000.0,0.0001696,2]
[399965607,1766950245133,-1000.0,0.00016962,2]
[399965608,1766950245143,-1000.0,0.00016962,2]
[399965609,1766950245153,-1000.0,0.00016962,2]
[399965610,1766950245163,-768.217,0.00016962,2]
[399965611,1766950245174,-150.0,0.00016973,2]
[399965612,1766950245185,-150.0,0.00016973,2]
[399965613,1766950245195,-212.82,0.00016985,2]
[399965614,1766950245205,-271.94730123,0.00016986,2]
[399965615,1766950245215,-31952.41,0.00016986,2]
[399965616,1766950245227,-261.52919059,0.00016986,2]
[399965617,1766950245237,-193.20504799,0.00016986,2]
[399965618,1766950245249,-291.19227716,0.00016986,2]
[399965619,1766950245259,-257.38593741,0.00016986,2]
[399965620,1766950245269,-159.10391865,0.00016986,2]
[399965621,1766950245281,-204.47837641,0.00016986,2]
[399965622,1766950245292,-298.68946488,0.00016986,2]
[399965623,1766950245303,-191.18737209,0.00016986,2]
[399965624,1766950245313,-288.29142727,0.00016986,2]
[399965625,1766950245324,-172.24524013,0.00016986,2]
[399965626,1766950245334,-156.10987043,0.00016986,2]
[399965627,1766950245345,-157.03567619,0.00016986,2]
[399965628,1766950245355,-273.23141721,0.00016986,2]
[399965629,1766950245365,-266.31997745,0.00016986,2]
[399965630,1766950245375,-151.0,0.00016997,2]
[399965631,1766950245386,-1104.26040629,0.00016999,5]
[399965632,1766950245396,-1104.26040629,0.00016999,5]
[399965633,1766950245405,-300.0,0.00016999,2]
[399965634,1766950245414,-300.0,0.00016999,2]
[399965635,1766950245424,-4373.9559265,0.00016999,2]
[399965636,1766950245435,-300.0,0.00016999,2]
[399965637,1766950245444,-666.0,0.00016999,2]
[399965638,1766950245454,-1252.1088086,0.00016999,2]
[399965639,1766950245463,-1395318.62103175,0.00017,2]
[399965640,1766950245615,-403.088,0.00017,2]
[399965641,1766950245628,-1712.9785327,0.00017,2]
[399965642,1766950245701,-151.16,0.00015653,2]
[399965643,1766950245711,-1138.53382742,0.00017,2]
[399965644,1766950245724,-539.44516753,0.00017,2]
[399965645,1766950245735,-2495.26019397,0.00017,2]
[399965646,1766950245750,-1245.20416491,0.00017,2]
[399965647,1766950245762,-249935.1513897,0.00017,2]
[399965648,1766950245775,-376303.14367415,0.00017,2]
[399965649,1766950245785,-542.33891215,0.00017,2]
[399965650,1766950245796,-974.43128905,0.00017,2]
[399965651,1766950245974,-998.9063611,0.00017,2]
[399965652,1766950246057,-18206.77570857,0.00017,2]
[399965653,1766950246068,-44468.57517599,0.00017,2]
[399965654,1766950276933,1074.35738196,0.00013889,5]
[399965655,1766950703215,196.21,6.686e-05,2]
[399965656,1766950703410,196.21,7.038e-05,2]
[399965657,1766950703625,196.21,7.39e-05,2]
[399965658,1766950703833,196.21,7.741e-05,2]
[399965659,1766950704036,196.21,8.093e-05,2]
[399965660,1766950704249,196.21,8.445e-05,2]
[399965661,1766950704594,196.21,8.797e-05,2]
[399965662,1766950704690,196.21,9.149e-05,2]
[399965663,1766950704915,196.21,9.501e-05,2]
[399965664,1766950705110,196.21,9.853e-05,2]
[399965665,1766950705391,196.21,0.00010205,2]
[399965666,1766950705602,196.21,0.00010557,2]
[399965667,1766950705830,196.21,0.00010908,2]
[399965668,1766950705992,196.21,0.0001126,2]
[399965669,1766950706183,196.21,0.00011612,2]
[399965670,1766950706369,196.21,0.00011964,2]
[399965671,1766950706783,196.21,0.00012316,2]
[399965672,1766950706982,196.21,0.00012668,2]
[399965673,1766950707243,196.21,0.0001302,2]
[399965674,1766950707457,196.21,0.00013372,2]
[399965685,1766950951936,154.65,0.00013151,2]
[399965686,1766951038414,1000.0,0.00013171,2]
[399965690,1766951386037,167.7,0.00010593,2]
[399965698,1766951431551,-195.0285,0.00013431,2]
[399965699,1766951431561,-916.00478245,0.00013485,2]
[399965702,1766951431571,-200.0,0.00013503,2]
[399965703,1766951431581,-154.83947337,0.00013689,2]
[399965704,1766951431591,-170.66587298,0.00013689,2]
[399965705,1766951431601,-612.55,0.00013699,2]
[399965706,1766951431610,-151.0,0.00013711,2]
[399965707,1766951431620,-300.0,0.00013712,2]
[399965708,1766951431629,-1200.0,0.00013712,2]
[399965709,1766951431638,-245.62364489,0.00013713,2]
[399965710,1766951431648,-500.77859212,0.00013713,2]
[399965711,1766951431657,-389.29307991,0.00013713,2]
[399965712,1766951431667,-500.0,0.00013713,2]
[399965713,1766951431677,-153.23027184,0.00013713,2]
[399965714,1766951431686,-500.0,0.00013713,2]
[399965715,1766951431695,-500.0,0.00013713,2]
[399965716,1766951431705,-500.0,0.00013713,2]
[399965717,1766951431714,-500.0,0.00013713,2]
[399965718,1766951431723,-500.0,0.00013713,2]
[399965719,1766951431733,-500.0,0.00013713,2]
[399965720,1766951431742,-500.0,0.00013713,2]
[399965721,1766951431751,-500.0,0.00013713,2]
[399965722,1766951431760,-491.2080687,0.00013713,2]
[399965723,1766951431777,-8.7919313,0.00013713,2]
[399965724,1766951431786,-500.0,0.00013713,2]
[399965725,1766951431795,-500.0,0.00013713,2]
[399965726,1766951431806,-460.79029748,0.00013713,2]
[399965727,1766951431843,-39.20970252,0.00013713,2]
[399965728,1766951431852,-500.0,0.00013713,2]
[399965729,1766951431861,-178.78190234,0.00013713,2]
[399965730,1766951431872,-321.21809766,0.00013713,2]
[399965731,1766951431881,-361.46947013,0.00013713,2]
[399965732,1766951431893,-138.53052987,0.00013713,2]
[399965733,1766951431902,-500.0,0.00013713,2]
[399965734,1766951431911,-30.48642792,0.00013713,2]
[399965735,1766951431922,-469.51357208,0.00013713,2]
[399965736,1766951431931,-500.0,0.00013713,2]
[399965737,1766951431940,-500.0,0.00013713,2]
[399965738,1766951431949,-500.0,0.00013713,2]
[399965739,1766951431958,-500.0,0.00013713,2]
[399965740,1766951431967,-221.43713614,0.00013713,2]
[399965741,1766951431978,-340.03130091,0.00013713,2]
[399965742,1766951431987,-500.0,0.00013713,2]
[399965743,1766951431996,-500.0,0.00013713,2]